[Event "Late-Titled-Tuesday-Blitz-May-07-2024"]
[Site "Chess.com"]
[Date "2024.05.07"]
[Round "1"]
[White "GMKrikor"]
[Black "MaiqMaster"]
[Result "1-0"]
[WhiteElo "2834"]
[BlackElo "2491"]
[TimeControl "180+1"]
[EndTime "14:08:17 PDT"]
[Termination "GMKrikor won on time"]

1. Nf3 {[%clk 0:03:00.9]} 1... c5 {[%clk 0:02:58.3]} 2. c4 {[%clk 0:03:00.8]}
2... Nc6 {[%clk 0:02:57.5]} 3. Nc3 {[%clk 0:03:01]} 3... e5 {[%clk 0:02:53.5]}
4. e3 {[%clk 0:03:00.8]} 4... Nf6 {[%clk 0:02:52.8]} 5. d4 {[%clk 0:03:00.9]}
5... e4 {[%clk 0:02:48.7]} 6. d5 {[%clk 0:02:58.3]} 6... exf3 {[%clk 0:02:48.7]}
7. dxc6 {[%clk 0:02:58.3]} 7... dxc6 {[%clk 0:02:48.9]} 8. Qxd8+ {[%clk
0:02:56.4]} 8... Kxd8 {[%clk 0:02:49.8]} 9. gxf3 {[%clk 0:02:56.5]} 9... g6
{[%clk 0:02:49.5]} 10. b3 {[%clk 0:02:56.8]} 10... Bg7 {[%clk 0:02:49.5]} 11.
Bb2 {[%clk 0:02:57.2]} 11... Kc7 {[%clk 0:02:48]} 12. Ne4 {[%clk 0:02:42.6]}
12... Nh5 {[%clk 0:02:46.8]} 13. Bxg7 {[%clk 0:02:42]} 13... Nxg7 {[%clk
0:02:47.7]} 14. Nxc5 {[%clk 0:02:42.3]} 14... Re8 {[%clk 0:02:39.5]} 15. O-O-O
{[%clk 0:02:38.2]} 15... b6 {[%clk 0:02:38]} 16. Ne4 {[%clk 0:02:32.7]} 16... a5
{[%clk 0:02:24.8]} 17. Kb2 {[%clk 0:02:24.1]} 17... a4 {[%clk 0:02:24.2]} 18.
Bg2 {[%clk 0:02:07.2]} 18... Nf5 {[%clk 0:02:21]} 19. h4 {[%clk 0:02:06.5]}
19... Be6 {[%clk 0:02:17.2]} 20. Nf6 {[%clk 0:02:01.3]} 20... Red8 {[%clk
0:02:13.3]} 21. Rxd8 {[%clk 0:01:48.1]} 21... Rxd8 {[%clk 0:02:12.4]} 22. Kc3
{[%clk 0:01:48.2]} 22... b5 {[%clk 0:02:07.4]} 23. Nxh7 {[%clk 0:01:31.9]} 23...
bxc4 {[%clk 0:02:03.8]} 24. bxc4 {[%clk 0:01:31.4]} 24... Nd6 {[%clk 0:02:04.5]}
25. Bf1 {[%clk 0:01:23.9]} 25... Rb8 {[%clk 0:01:37.9]} 26. Bd3 {[%clk
0:01:21.8]} 26... a3 {[%clk 0:01:32.7]} 27. Ng5 {[%clk 0:01:12]} 27... Bf5
{[%clk 0:01:19]} 28. e4 {[%clk 0:01:07.6]} 28... Be6 {[%clk 0:01:13.9]} 29. e5
{[%clk 0:01:01.3]} 29... Nf5 {[%clk 0:01:14]} 30. Nxe6+ {[%clk 0:00:55.3]} 30...
fxe6 {[%clk 0:01:14.9]} 31. h5 {[%clk 0:00:54.2]} 31... gxh5 {[%clk 0:01:15.8]}
32. Bxf5 {[%clk 0:00:45.6]} 32... exf5 {[%clk 0:01:15.3]} 33. Rxh5 {[%clk
0:00:46.1]} 33... Rb2 {[%clk 0:01:15.4]} 34. Rxf5 {[%clk 0:00:46.6]} 34... Kd7
{[%clk 0:01:09.6]} 35. Rf6 {[%clk 0:00:44]} 35... Rxa2 {[%clk 0:01:04.1]} 36.
Kb3 {[%clk 0:00:42.9]} 36... Rxf2 {[%clk 0:01:04.1]} 37. Kxa3 {[%clk 0:00:40.9]}
37... Re2 {[%clk 0:01:03.3]} 38. f4 {[%clk 0:00:40.3]} 38... c5 {[%clk
0:01:03.5]} 39. Kb3 {[%clk 0:00:34.7]} 39... Re3+ {[%clk 0:01:03.6]} 40. Kc2
{[%clk 0:00:35.1]} 40... Ke7 {[%clk 0:00:58.7]} 41. Kd2 {[%clk 0:00:33.4]} 41...
Rf3 {[%clk 0:00:54]} 42. Ke2 {[%clk 0:00:28.8]} 42... Rc3 {[%clk 0:00:52.9]} 43.
Ra6 {[%clk 0:00:26.4]} 43... Rxc4 {[%clk 0:00:51.4]} 44. Ke3 {[%clk 0:00:26.8]}
44... Rc1 {[%clk 0:00:44.5]} 45. Ke4 {[%clk 0:00:27.3]} 45... c4 {[%clk
0:00:43.4]} 46. Rc6 {[%clk 0:00:26.4]} 46... c3 {[%clk 0:00:41.9]} 47. Kf5
{[%clk 0:00:21.5]} 47... c2 {[%clk 0:00:40.9]} 48. Rc7+ {[%clk 0:00:21.3]} 48...
Kd8 {[%clk 0:00:40.8]} 49. Rc3 {[%clk 0:00:21.9]} 49... Ke7 {[%clk 0:00:39.7]}
50. e6 {[%clk 0:00:18.8]} 50... Kd6 {[%clk 0:00:23.9]} 51. Rc8 {[%clk
0:00:14.2]} 51... Ke7 {[%clk 0:00:20.2]} 52. Rc6 {[%clk 0:00:13.6]} 52... Kd8
{[%clk 0:00:16.1]} 53. Rd6+ {[%clk 0:00:07]} 53... Ke7 {[%clk 0:00:14.3]} 54.
Rd7+ {[%clk 0:00:07.4]} 54... Ke8 {[%clk 0:00:14.2]} 55. Rd2 {[%clk 0:00:08.3]}
55... Ke7 {[%clk 0:00:13.4]} 56. Rh2 {[%clk 0:00:05.9]} 56... Kd6 {[%clk
0:00:11.1]} 57. Kf6 {[%clk 0:00:04.5]} 57... Re1 {[%clk 0:00:01.3]} 58. Rd2+
{[%clk 0:00:04.6]} 58... Kc5 {[%clk 0:00:00.5]} 59. Rxc2+ {[%clk 0:00:05.1]} 1-0

[Event "Late-Titled-Tuesday-Blitz-May-07-2024"]
[Site "Chess.com"]
[Date "2024.05.07"]
[Round "1"]
[White "ChessAdvanceUSA"]
[Black "KNVB"]
[Result "0-1"]
[WhiteElo "2461"]
[BlackElo "2802"]
[TimeControl "180+1"]
[EndTime "14:08:19 PDT"]
[Termination "KNVB won by resignation"]

1. Nf3 {[%clk 0:02:59.4]} 1... a5 {[%clk 0:02:59.8]} 2. e4 {[%clk 0:02:54.4]}
2... Ra6 {[%clk 0:02:59.5]} 3. Bxa6 {[%clk 0:02:52.9]} 3... Nxa6 {[%clk
0:02:57.8]} 4. O-O {[%clk 0:02:53]} 4... e6 {[%clk 0:02:54.8]} 5. d4 {[%clk
0:02:52.8]} 5... b6 {[%clk 0:02:54.8]} 6. Nc3 {[%clk 0:02:52.3]} 6... Bb7 {[%clk
0:02:54.6]} 7. Bg5 {[%clk 0:02:50.2]} 7... Qa8 {[%clk 0:02:54.1]} 8. Re1 {[%clk
0:02:47.3]} 8... h6 {[%clk 0:02:54]} 9. Bh4 {[%clk 0:02:43.5]} 9... d6 {[%clk
0:02:49]} 10. d5 {[%clk 0:02:33.9]} 10... e5 {[%clk 0:02:47.3]} 11. Nb5 {[%clk
0:02:31]} 11... Be7 {[%clk 0:02:28.8]} 12. Bxe7 {[%clk 0:02:28.9]} 12... Nxe7
{[%clk 0:02:29.7]} 13. Nh4 {[%clk 0:02:20.6]} 13... g5 {[%clk 0:02:21.2]} 14.
Nf3 {[%clk 0:02:02.5]} 14... O-O {[%clk 0:02:19.8]} 15. a3 {[%clk 0:02:01.6]}
15... f5 {[%clk 0:02:12.6]} 16. c4 {[%clk 0:01:59.1]} 16... Qc8 {[%clk
0:01:53.1]} 17. Qc2 {[%clk 0:01:40.4]} 17... fxe4 {[%clk 0:01:48.5]} 18. Qxe4
{[%clk 0:01:35.3]} 18... Nc5 {[%clk 0:01:40.6]} 19. Qc2 {[%clk 0:01:19.8]} 19...
a4 {[%clk 0:01:40.4]} 20. Nc3 {[%clk 0:01:16.1]} 20... Qd7 {[%clk 0:01:28.1]}
21. Ne4 {[%clk 0:01:10.9]} 21... Nb3 {[%clk 0:01:20.1]} 22. Rad1 {[%clk
0:01:08.7]} 22... Nf5 {[%clk 0:00:51.1]} 23. Rd3 {[%clk 0:00:58.2]} 23... Bc8
{[%clk 0:00:43.6]} 24. h3 {[%clk 0:00:54.8]} 24... Qg7 {[%clk 0:00:34.5]} 25.
Rxb3 {[%clk 0:00:53.1]} 25... axb3 {[%clk 0:00:34.7]} 26. Qxb3 {[%clk
0:00:53.6]} 26... g4 {[%clk 0:00:22.9]} 27. hxg4 {[%clk 0:00:48.4]} 27... Qxg4
{[%clk 0:00:23.2]} 28. Nh2 {[%clk 0:00:40.7]} 28... Qg6 {[%clk 0:00:23]} 29. Ng3
{[%clk 0:00:35.7]} 29... Nd4 {[%clk 0:00:21.5]} 30. Qd1 {[%clk 0:00:28.3]} 30...
Bd7 {[%clk 0:00:12.3]} 31. b4 {[%clk 0:00:28]} 31... Kh8 {[%clk 0:00:04.9]} 32.
c5 {[%clk 0:00:28.1]} 32... bxc5 {[%clk 0:00:03.7]} 33. bxc5 {[%clk 0:00:29]}
33... Qf6 {[%clk 0:00:03.5]} 34. c6 {[%clk 0:00:28.2]} 34... Qxf2+ {[%clk
0:00:03.4]} 35. Kh1 {[%clk 0:00:26.3]} 35... Be8 {[%clk 0:00:03.4]} 36. Ne4
{[%clk 0:00:20.6]} 36... Qh4 {[%clk 0:00:03.4]} 37. g3 {[%clk 0:00:19.1]} 37...
Qh3 {[%clk 0:00:02.8]} 38. Qg4 {[%clk 0:00:18.4]} 38... Qxg4 {[%clk 0:00:03]}
39. Nxg4 {[%clk 0:00:19.3]} 39... Kg7 {[%clk 0:00:03.6]} 40. Ne3 {[%clk
0:00:18.6]} 40... Bg6 {[%clk 0:00:02.9]} 41. Nc3 {[%clk 0:00:17.1]} 41... Ra8
{[%clk 0:00:03.6]} 42. Ra1 {[%clk 0:00:16.6]} 42... h5 {[%clk 0:00:02.7]} 43.
Kg2 {[%clk 0:00:16.4]} 43... Ra5 {[%clk 0:00:02.5]} 44. g4 {[%clk 0:00:16.3]}
44... h4 {[%clk 0:00:02.6]} 45. Kh3 {[%clk 0:00:15.8]} 45... Rc5 {[%clk
0:00:02.7]} 46. Rc1 {[%clk 0:00:13.9]} 46... Nf3 {[%clk 0:00:02.2]} 47. Kg2
{[%clk 0:00:12.2]} 47... Ng5 {[%clk 0:00:02.5]} 48. Ne2 {[%clk 0:00:10.5]} 48...
h3+ {[%clk 0:00:02.6]} 49. Kh2 {[%clk 0:00:10.5]} 49... Ra5 {[%clk 0:00:03.4]}
50. Rc3 {[%clk 0:00:09.9]} 50... Ne4 {[%clk 0:00:02.9]} 51. Rb3 {[%clk
0:00:09.6]} 51... Nc5 {[%clk 0:00:03.4]} 52. Rc3 {[%clk 0:00:09.2]} 52... Ne4
{[%clk 0:00:03.6]} 53. Rb3 {[%clk 0:00:09.5]} 53... Nc5 {[%clk 0:00:02.6]} 54.
Rc3 {[%clk 0:00:09.9]} 54... Kf6 {[%clk 0:00:03.4]} 55. Kxh3 {[%clk 0:00:09.7]}
55... Ra4 {[%clk 0:00:02.7]} 56. Kh2 {[%clk 0:00:09.1]} 56... Bf7 {[%clk
0:00:02]} 57. Ng3 {[%clk 0:00:08.7]} 57... Kg5 {[%clk 0:00:01.9]} 58. Nc4 {[%clk
0:00:05.9]} 58... Bxd5 {[%clk 0:00:01.4]} 59. Ne3 {[%clk 0:00:06.4]} 59... Bxc6
{[%clk 0:00:01.5]} 60. Rc4 {[%clk 0:00:05.8]} 60... Rxa3 {[%clk 0:00:01.6]} 61.
Nef1 {[%clk 0:00:03.2]} 61... Ra2+ {[%clk 0:00:01.9]} 62. Kh3 {[%clk 0:00:03.2]}
62... Bg2+ {[%clk 0:00:02.2]} 63. Kh2 {[%clk 0:00:02.7]} 63... Bxf1+ {[%clk
0:00:03.1]} 64. Kg1 {[%clk 0:00:03.1]} 64... Bxc4 {[%clk 0:00:03.5]} 0-1

[Event "Late-Titled-Tuesday-Blitz-May-07-2024"]
[Site "Chess.com"]
[Date "2024.05.07"]
[Round "1"]
[White "alexrustemov"]
[Black "EsmeraldasAnderson03"]
[Result "1-0"]
[WhiteElo "2935"]
[BlackElo "2530"]
[TimeControl "180+1"]
[EndTime "14:08:20 PDT"]
[Termination "alexrustemov won on time"]

1. d4 {[%clk 0:03:00.9]} 1... d5 {[%clk 0:02:59.8]} 2. c4 {[%clk 0:03:01.2]}
2... dxc4 {[%clk 0:03:00.7]} 3. Nf3 {[%clk 0:03:00.1]} 3... a6 {[%clk
0:03:00.4]} 4. e3 {[%clk 0:03:00.3]} 4... Nf6 {[%clk 0:03:01]} 5. Bxc4 {[%clk
0:02:59.5]} 5... e6 {[%clk 0:03:01.9]} 6. O-O {[%clk 0:02:59.3]} 6... c5 {[%clk
0:03:02.5]} 7. e4 {[%clk 0:02:59.2]} 7... cxd4 {[%clk 0:03:02.1]} 8. e5 {[%clk
0:02:58.5]} 8... Nd5 {[%clk 0:02:57.1]} 9. Qxd4 {[%clk 0:02:58.3]} 9... Nc6
{[%clk 0:02:56.3]} 10. Qe4 {[%clk 0:02:56.9]} 10... b5 {[%clk 0:02:48.7]} 11.
Bb3 {[%clk 0:02:55.2]} 11... Bb7 {[%clk 0:02:48.1]} 12. Rd1 {[%clk 0:02:49.7]}
12... Na5 {[%clk 0:02:48.4]} 13. Bc2 {[%clk 0:02:26.9]} 13... Qb6 {[%clk
0:02:48.7]} 14. Qg4 {[%clk 0:02:22.3]} 14... Rc8 {[%clk 0:02:38]} 15. Be4 {[%clk
0:02:20]} 15... Nb4 {[%clk 0:02:25.9]} 16. Nc3 {[%clk 0:02:14.7]} 16... g6
{[%clk 0:01:54.5]} 17. Bxb7 {[%clk 0:02:10.6]} 17... Nxb7 {[%clk 0:01:50.5]} 18.
Ne4 {[%clk 0:02:10.9]} 18... Be7 {[%clk 0:01:46.3]} 19. Bh6 {[%clk 0:02:01.3]}
19... Nd5 {[%clk 0:01:39.7]} 20. h4 {[%clk 0:01:57.9]} 20... Nc5 {[%clk
0:01:38.5]} 21. Nfg5 {[%clk 0:01:35.9]} 21... Nd7 {[%clk 0:01:16.8]} 22. Qg3
{[%clk 0:01:29]} 22... Qc7 {[%clk 0:00:54.2]} 23. Nd6+ {[%clk 0:01:23.6]} 23...
Bxd6 {[%clk 0:00:53.5]} 24. exd6 {[%clk 0:01:24.5]} 24... Qb6 {[%clk 0:00:39]}
25. Rac1 {[%clk 0:01:23.1]} 25... Rc4 {[%clk 0:00:35]} 26. b3 {[%clk 0:01:20]}
26... Rc6 {[%clk 0:00:22.5]} 27. Rxc6 {[%clk 0:01:12.7]} 27... Qxc6 {[%clk
0:00:23.4]} 28. Ne4 {[%clk 0:01:00.5]} 28... f5 {[%clk 0:00:15.2]} 29. Rc1
{[%clk 0:00:59.9]} 29... Qb7 {[%clk 0:00:15.8]} 30. Ng5 {[%clk 0:00:55.2]} 30...
e5 {[%clk 0:00:14.1]} 31. Bg7 {[%clk 0:00:42.2]} 31... Nf4 {[%clk 0:00:11.9]}
32. Kh2 {[%clk 0:00:34]} 32... Nh5 {[%clk 0:00:11.9]} 33. Rc7 {[%clk 0:00:24.7]}
33... Nxg3 {[%clk 0:00:07.2]} 34. Rxb7 {[%clk 0:00:23.2]} 34... Rg8 {[%clk
0:00:07.2]} 35. Bh6 {[%clk 0:00:14.6]} 35... Ne4 {[%clk 0:00:04.8]} 36. Nxe4
{[%clk 0:00:13.9]} 36... fxe4 {[%clk 0:00:05.7]} 37. Ra7 {[%clk 0:00:13.1]}
37... a5 {[%clk 0:00:02.8]} 38. Rxa5 {[%clk 0:00:12.5]} 38... Kf7 {[%clk
0:00:02.2]} 39. Rxb5 {[%clk 0:00:12.2]} 39... Ke6 {[%clk 0:00:03.1]} 40. a4
{[%clk 0:00:11.4]} 40... Kxd6 {[%clk 0:00:02.6]} 41. Be3 {[%clk 0:00:11.3]}
41... Kc6 {[%clk 0:00:02]} 42. Rb4 {[%clk 0:00:10.8]} 42... Kd5 {[%clk
0:00:01.5]} 43. Rb5+ {[%clk 0:00:10.7]} 43... Kc6 {[%clk 0:00:01.4]} 44. g4
{[%clk 0:00:11.2]} 44... Rc8 {[%clk 0:00:01.8]} 45. g5 {[%clk 0:00:11.3]} 45...
Re8 {[%clk 0:00:02.1]} 46. Kg3 {[%clk 0:00:11.1]} 46... Ra8 {[%clk 0:00:02.7]}
47. Kg2 {[%clk 0:00:10.4]} 47... Rf8 {[%clk 0:00:03.4]} 48. Kf1 {[%clk
0:00:10.7]} 48... Rc8 {[%clk 0:00:04.1]} 49. Ke2 {[%clk 0:00:11]} 49... Rd8
{[%clk 0:00:04.7]} 50. Kd2 {[%clk 0:00:10.5]} 50... Re8 {[%clk 0:00:05.6]} 51.
Kc3 {[%clk 0:00:10.8]} 51... Re6 {[%clk 0:00:06.3]} 52. Kc4 {[%clk 0:00:11.1]}
52... Rd6 {[%clk 0:00:07]} 53. b4 {[%clk 0:00:11.2]} 53... Rd3 {[%clk
0:00:07.2]} 54. Ra5 {[%clk 0:00:10.9]} 54... Ra3 {[%clk 0:00:07.2]} 55. Ra6+
{[%clk 0:00:11.1]} 55... Kc7 {[%clk 0:00:08]} 56. b5 {[%clk 0:00:11.7]} 56...
Ra1 {[%clk 0:00:05.1]} 57. Kd5 {[%clk 0:00:11.9]} 57... Rd1+ {[%clk 0:00:04.7]}
58. Kxe4 {[%clk 0:00:12.2]} 58... Ra1 {[%clk 0:00:02.6]} 59. a5 {[%clk
0:00:12.4]} 59... Kb7 {[%clk 0:00:02.2]} 60. Kd5 {[%clk 0:00:12]} 60... Nb8
{[%clk 0:00:02.1]} 61. Rb6+ {[%clk 0:00:11.7]} 61... Kc7 {[%clk 0:00:02.3]} 62.
a6 {[%clk 0:00:12.3]} 62... Kc8 {[%clk 0:00:00.6]} 63. Rb7 {[%clk 0:00:11.9]}
63... Rb1 {[%clk 0:00:00.7]} 64. Kxe5 {[%clk 0:00:11.6]} 1-0

[Event "Late-Titled-Tuesday-Blitz-May-07-2024"]
[Site "Chess.com"]
[Date "2024.05.07"]
[Round "1"]
[White "IlanSchnaider"]
[Black "FredddieCroderg"]
[Result "1-0"]
[WhiteElo "2732"]
[BlackElo "2415"]
[TimeControl "180+1"]
[EndTime "14:08:20 PDT"]
[Termination "IlanSchnaider won by resignation"]

1. Nf3 {[%clk 0:02:57.8]} 1... d5 {[%clk 0:02:54.4]} 2. b3 {[%clk 0:02:55.9]}
2... c5 {[%clk 0:02:52.3]} 3. Bb2 {[%clk 0:02:55.2]} 3... Nc6 {[%clk 0:02:51.8]}
4. e3 {[%clk 0:02:55.8]} 4... Nf6 {[%clk 0:02:45.3]} 5. Bb5 {[%clk 0:02:56]}
5... Bd7 {[%clk 0:02:44.5]} 6. O-O {[%clk 0:02:53.4]} 6... e6 {[%clk 0:02:44.2]}
7. d4 {[%clk 0:02:46.4]} 7... a6 {[%clk 0:02:36.2]} 8. Bxc6 {[%clk 0:02:45.9]}
8... Bxc6 {[%clk 0:02:35.8]} 9. Nbd2 {[%clk 0:02:44.6]} 9... Be7 {[%clk
0:02:28.4]} 10. dxc5 {[%clk 0:02:44]} 10... Bxc5 {[%clk 0:02:28]} 11. Ne5 {[%clk
0:02:43.8]} 11... O-O {[%clk 0:02:26.9]} 12. Qf3 {[%clk 0:02:43.1]} 12... Ne4
{[%clk 0:02:19]} 13. Nxe4 {[%clk 0:02:38.2]} 13... dxe4 {[%clk 0:02:18.6]} 14.
Qg3 {[%clk 0:02:31.5]} 14... f6 {[%clk 0:02:16.2]} 15. Nxc6 {[%clk 0:02:20.7]}
15... bxc6 {[%clk 0:02:15.8]} 16. Qg4 {[%clk 0:02:21]} 16... Qd5 {[%clk
0:02:11.1]} 17. Rad1 {[%clk 0:02:13.1]} 17... Qf5 {[%clk 0:02:10.2]} 18. Qxf5
{[%clk 0:02:08.6]} 18... exf5 {[%clk 0:02:09.1]} 19. Rd7 {[%clk 0:02:09.4]}
19... Rfd8 {[%clk 0:02:07.3]} 20. Rfd1 {[%clk 0:02:09.8]} 20... Bb6 {[%clk
0:02:04.6]} 21. Kf1 {[%clk 0:02:04.6]} 21... Rxd7 {[%clk 0:01:50.5]} 22. Rxd7
{[%clk 0:02:05.5]} 22... Rd8 {[%clk 0:01:50.5]} 23. Rxd8+ {[%clk 0:01:51.1]}
23... Bxd8 {[%clk 0:01:50.4]} 24. Ke2 {[%clk 0:01:50.1]} 24... Kf7 {[%clk
0:01:50.5]} 25. Kd2 {[%clk 0:01:25.7]} 25... Ke6 {[%clk 0:01:49.6]} 26. Ba3
{[%clk 0:01:15.8]} 26... Bc7 {[%clk 0:01:48.3]} 27. h3 {[%clk 0:01:12.1]} 27...
f4 {[%clk 0:01:47.4]} 28. Bc5 {[%clk 0:01:01.1]} 28... fxe3+ {[%clk 0:01:45.7]}
29. Kxe3 {[%clk 0:01:00.4]} 29... f5 {[%clk 0:01:39.9]} 30. h4 {[%clk
0:00:46.7]} 30... Kd5 {[%clk 0:01:34.1]} 31. Bf8 {[%clk 0:00:40.2]} 31... f4+
{[%clk 0:01:32.4]} 32. Ke2 {[%clk 0:00:40]} 32... g6 {[%clk 0:01:28.8]} 33. Bg7
{[%clk 0:00:34]} 33... Bd8 {[%clk 0:01:23.2]} 34. Bh6 {[%clk 0:00:30.6]} 34...
Ke5 {[%clk 0:01:19.7]} 35. g3 {[%clk 0:00:24.6]} 35... fxg3 {[%clk 0:01:15.7]}
36. fxg3 {[%clk 0:00:25.5]} 36... Kf5 {[%clk 0:01:14.1]} 37. c4 {[%clk
0:00:09.5]} 37... Kg4 {[%clk 0:01:11.5]} 38. Bf4 {[%clk 0:00:07.4]} 38... Bxh4
{[%clk 0:01:09.6]} 39. b4 {[%clk 0:00:04.8]} 39... Be7 {[%clk 0:00:56]} 40. c5
{[%clk 0:00:01.5]} 40... h5 {[%clk 0:00:51]} 41. Bd6 {[%clk 0:00:02.1]} 41...
Bd8 {[%clk 0:00:47.8]} 42. a4 {[%clk 0:00:02.7]} 42... g5 {[%clk 0:00:45.2]} 43.
Ke3 {[%clk 0:00:03.1]} 43... h4 {[%clk 0:00:43.8]} 44. gxh4 {[%clk 0:00:03.3]}
44... gxh4 {[%clk 0:00:43.9]} 45. Kxe4 {[%clk 0:00:03.9]} 45... h3 {[%clk
0:00:42.7]} 46. Kd4 {[%clk 0:00:02.1]} 46... Bg5 {[%clk 0:00:41.7]} 47. b5
{[%clk 0:00:02.7]} 47... axb5 {[%clk 0:00:37.2]} 48. axb5 {[%clk 0:00:02.8]}
48... cxb5 {[%clk 0:00:33.5]} 49. c6 {[%clk 0:00:02.7]} 49... Bf6+ {[%clk
0:00:24]} 50. Kc5 {[%clk 0:00:02.1]} 50... Be7 {[%clk 0:00:15.5]} 51. c7 {[%clk
0:00:01.3]} 51... Bxd6+ {[%clk 0:00:15.3]} 52. Kxd6 {[%clk 0:00:02]} 52... h2
{[%clk 0:00:15.8]} 53. c8=Q+ {[%clk 0:00:02.7]} 53... Kg3 {[%clk 0:00:15.7]} 54.
Qc6 {[%clk 0:00:03]} 54... Kf2 {[%clk 0:00:15.2]} 55. Qh1 {[%clk 0:00:03.4]}
55... Kg3 {[%clk 0:00:15.3]} 56. Kc5 {[%clk 0:00:03.9]} 56... b4 {[%clk
0:00:15.4]} 57. Kxb4 {[%clk 0:00:04.2]} 57... Kh3 {[%clk 0:00:16.3]} 58. Kc3
{[%clk 0:00:04.7]} 58... Kg3 {[%clk 0:00:16.6]} 59. Kd3 {[%clk 0:00:05]} 59...
Kh3 {[%clk 0:00:17.5]} 60. Ke3 {[%clk 0:00:05.3]} 60... Kg3 {[%clk 0:00:17.5]}
61. Ke2 {[%clk 0:00:05.9]} 61... Kh4 {[%clk 0:00:17.5]} 62. Qxh2+ {[%clk
0:00:05.8]} 62... Kg4 {[%clk 0:00:17.7]} 63. Ke3 {[%clk 0:00:05.6]} 1-0

[Event "Late-Titled-Tuesday-Blitz-May-07-2024"]
[Site "Chess.com"]
[Date "2024.05.07"]
[Round "1"]
[White "Smiechu"]
[Black "Maitreia"]
[Result "1-0"]
[WhiteElo "2426"]
[BlackElo "2701"]
[TimeControl "180+1"]
[EndTime "14:08:21 PDT"]
[Termination "Smiechu won by checkmate"]

1. e4 {[%clk 0:02:37.6]} 1... c5 {[%clk 0:02:59.6]} 2. Nf3 {[%clk 0:02:36.2]}
2... g6 {[%clk 0:03:00]} 3. d4 {[%clk 0:02:35.9]} 3... cxd4 {[%clk 0:03:00.9]}
4. Nxd4 {[%clk 0:02:36.3]} 4... Bg7 {[%clk 0:03:01.1]} 5. Nc3 {[%clk 0:02:36.5]}
5... Nc6 {[%clk 0:03:01.8]} 6. Be3 {[%clk 0:02:35.9]} 6... Nf6 {[%clk
0:03:02.2]} 7. Bc4 {[%clk 0:02:36.5]} 7... O-O {[%clk 0:03:02.5]} 8. Bb3 {[%clk
0:02:36.7]} 8... a5 {[%clk 0:03:02.3]} 9. O-O {[%clk 0:02:36.3]} 9... a4 {[%clk
0:03:02.1]} 10. Nxa4 {[%clk 0:02:36.3]} 10... Nxe4 {[%clk 0:03:02.6]} 11. Nb5
{[%clk 0:02:36.8]} 11... d5 {[%clk 0:03:01.9]} 12. c3 {[%clk 0:02:20.4]} 12...
e6 {[%clk 0:02:55.8]} 13. f3 {[%clk 0:02:12]} 13... Nd6 {[%clk 0:02:55.2]} 14.
Nxd6 {[%clk 0:02:09.3]} 14... Qxd6 {[%clk 0:02:56.1]} 15. Bc5 {[%clk 0:02:08.4]}
15... Qf4 {[%clk 0:02:56.7]} 16. Bxf8 {[%clk 0:02:03.5]} 16... Bxf8 {[%clk
0:02:57.6]} 17. Kh1 {[%clk 0:01:57.7]} 17... Qe3 {[%clk 0:02:39.2]} 18. Re1
{[%clk 0:01:55.3]} 18... Qa7 {[%clk 0:02:38.8]} 19. c4 {[%clk 0:01:25.8]} 19...
dxc4 {[%clk 0:02:39.7]} 20. Bc2 {[%clk 0:01:25.9]} 20... Nd4 {[%clk 0:02:28.5]}
21. Nc3 {[%clk 0:01:23.9]} 21... b5 {[%clk 0:02:17.6]} 22. Be4 {[%clk
0:01:21.7]} 22... Rb8 {[%clk 0:02:13.4]} 23. Qd2 {[%clk 0:01:15.1]} 23... Bc5
{[%clk 0:01:54.5]} 24. Rad1 {[%clk 0:01:13.3]} 24... Bd7 {[%clk 0:01:39.7]} 25.
Bb1 {[%clk 0:01:10.9]} 25... Bc6 {[%clk 0:01:35.7]} 26. Ne4 {[%clk 0:01:10.9]}
26... Bxe4 {[%clk 0:01:33.8]} 27. Rxe4 {[%clk 0:01:10.8]} 27... Rd8 {[%clk
0:01:30.4]} 28. b3 {[%clk 0:01:00.4]} 28... Rd6 {[%clk 0:01:24.6]} 29. bxc4
{[%clk 0:00:28]} 29... bxc4 {[%clk 0:01:25.5]} 30. Qc1 {[%clk 0:00:21.8]} 30...
Qa4 {[%clk 0:01:14]} 31. h3 {[%clk 0:00:19.4]} 31... Ne2 {[%clk 0:00:59.9]} 32.
Bc2 {[%clk 0:00:08.6]} 32... Ng3+ {[%clk 0:00:16.8]} 33. Kh2 {[%clk 0:00:08.1]}
33... Qd7 {[%clk 0:00:13]} 34. Kxg3 {[%clk 0:00:07.5]} 34... Qc7 {[%clk
0:00:13.5]} 35. Qf4 {[%clk 0:00:05.1]} 35... f5 {[%clk 0:00:10.2]} 36. Red4
{[%clk 0:00:03.4]} 36... g5 {[%clk 0:00:07.1]} 37. Qe5 {[%clk 0:00:02.3]} 37...
Rc6 {[%clk 0:00:05.3]} 38. Qxc7 {[%clk 0:00:01.8]} 38... Rxc7 {[%clk 0:00:06.2]}
39. Rd8+ {[%clk 0:00:02]} 39... Bf8 {[%clk 0:00:07.1]} 40. Kh2 {[%clk
0:00:02.2]} 40... Kf7 {[%clk 0:00:06.9]} 41. Kg1 {[%clk 0:00:02.6]} 41... Be7
{[%clk 0:00:07.1]} 42. R8d7 {[%clk 0:00:02.7]} 42... Rc5 {[%clk 0:00:07.5]} 43.
Rb7 {[%clk 0:00:02.8]} 43... Kf6 {[%clk 0:00:06.8]} 44. Rdd7 {[%clk 0:00:02.8]}
44... Bd6 {[%clk 0:00:06.2]} 45. h4 {[%clk 0:00:03]} 45... Bf4 {[%clk
0:00:05.9]} 46. hxg5+ {[%clk 0:00:02.9]} 46... Bxg5 {[%clk 0:00:06.8]} 47. g3
{[%clk 0:00:03.2]} 47... Be3+ {[%clk 0:00:06.8]} 48. Kf1 {[%clk 0:00:03.2]}
48... f4 {[%clk 0:00:07.7]} 49. Ke2 {[%clk 0:00:03.3]} 49... Ke5 {[%clk
0:00:07.6]} 50. gxf4+ {[%clk 0:00:03.6]} 50... Bxf4 {[%clk 0:00:08.5]} 51. Rxh7
{[%clk 0:00:03.2]} 51... Rd5 {[%clk 0:00:08.4]} 52. Rh5+ {[%clk 0:00:03.8]}
52... Kf6 {[%clk 0:00:07.7]} 53. Rxd5 {[%clk 0:00:04.4]} 53... exd5 {[%clk
0:00:07.7]} 54. a4 {[%clk 0:00:04.8]} 54... d4 {[%clk 0:00:07.7]} 55. a5 {[%clk
0:00:05.2]} 55... Ke6 {[%clk 0:00:05]} 56. a6 {[%clk 0:00:04.6]} 56... Bb8
{[%clk 0:00:04.3]} 57. Rxb8 {[%clk 0:00:04.6]} 57... d3+ {[%clk 0:00:04.5]} 58.
Bxd3 {[%clk 0:00:04.9]} 58... cxd3+ {[%clk 0:00:05.4]} 59. Kxd3 {[%clk
0:00:05.5]} 59... Kd6 {[%clk 0:00:06.3]} 60. a7 {[%clk 0:00:05.8]} 60... Kc7
{[%clk 0:00:07.2]} 61. a8=Q {[%clk 0:00:05.3]} 61... Kd6 {[%clk 0:00:07.3]} 62.
Qa5 {[%clk 0:00:05.1]} 62... Ke7 {[%clk 0:00:08.2]} 63. Rb6 {[%clk 0:00:05.3]}
63... Kf7 {[%clk 0:00:08.6]} 64. Qa7+ {[%clk 0:00:05.9]} 64... Ke8 {[%clk
0:00:09.5]} 65. Rb8# {[%clk 0:00:06.7]} 1-0